bitfinex/quotes_ETHUSD_20220218
["timestamp","ask_amount","ask_price","bid_price","bid_amount"]
[1645208747096,1.20171,2773.8,2773.2,0.9017]
[1645208747996,0.3,2773.8,2773.1,0.0176262]
[1645208748297,1.85290683,2773.9,2773.2,1.53251927]
[1645208749300,1.20161,2774.1,2773.5,0.01880128]
[1645208749301,0.90162,2774.1,2773.5,0.01880128]
[1645208749499,2.736,2774.6,2773.5,0.01880128]
[1645208749500,1.80315,2774.3,2773.5,0.01880128]
[1645208749899,1.80315,2774.3,2773.6,1.53237886]
[1645208750156,1.7602,2774.9,2773.6,1.53237886]
[1645208750356,0.79013044,2775.0,2774.2,1.60701047]
[1645208750757,0.79013044,2775.0,2774.2,1.90701047]
[1645208751662,1.1802,2775.4,2774.2,1.30561047]
[1645208751862,0.1801,2775.5,2774.5,0.90133]
[1645208752360,0.1801,2775.7,2774.5,0.6]
[1645208752558,0.16318288,2776.0,2774.5,0.6]
[1645208752559,0.1801,2776.0,2774.6,1.8024546]
[1645208752758,2.06245,2776.1,2774.8,0.68397349]
[1645208752759,0.66212957,2775.4,2774.8,0.68397349]
[1645208754497,0.66212957,2775.4,2774.9,0.433]
[1645208754692,0.66212957,2775.4,2774.9,0.733]
[1645208754892,0.66212957,2775.4,2774.9,0.433]
[1645208755099,11.06,2775.3,2773.8,1.80287]
[1645208755293,0.1802,2775.2,2773.9,1.53223445]
[1645208755494,0.1802,2775.3,2773.9,1.53223445]
[1645208755695,1.0817386,2775.3,2773.9,1.53223445]
[1645208755994,0.83703325,2774.8,2774.2,0.89409645]
[1645208756594,0.90151,2775.3,2774.2,1.49409645]
[1645208757194,0.90151,2775.3,2774.2,1.19409645]
[1645208757647,0.75125493,2774.8,2773.8,0.1801]
[1645208757847,0.00144522,2773.8,2773.7,1.31878383]
[1645208758146,0.00144522,2773.8,2773.7,1.55122371]
[1645208759048,0.00144522,2773.8,2773.7,2.30809717]
[1645208759245,0.00144522,2773.8,2773.7,2.90809717]
[1645208759445,0.00144522,2773.8,2773.7,1.37565729]
[1645208759652,0.00144522,2773.8,2773.7,2.37565729]
[1645208759847,0.00144522,2773.8,2773.7,1.37565729]
[1645208760346,0.00144522,2773.8,2773.7,2.37565729]
[1645208760746,0.00144522,2773.8,2773.7,2.90816216]
[1645208760946,0.00144522,2773.8,2773.7,2.60816216]
[1645208761146,0.00144522,2773.8,2773.7,0.3]
[1645208761421,0.00144522,2773.8,2773.4,0.6]
[1645208761603,0.00144522,2773.8,2773.4,0.3]
[1645208761804,0.00144522,2773.8,2773.3,0.6]
[1645208762002,0.00144522,2773.8,2773.4,1.53266801]
[1645208762504,0.00144522,2773.8,2773.6,0.63734698]
[1645208762707,0.00144522,2773.8,2773.6,0.63591002]
[1645208763904,0.02274489,2773.8,2773.4,0.6]
[1645208764108,0.02274489,2773.8,2773.0,0.1802]
[1645208764306,0.02274489,2773.8,2772.5,4.0834]
[1645208764508,0.02274489,2773.8,2772.6,1.53290351]
[1645208764509,0.92472529,2773.8,2772.6,1.53290351]
[1645208764907,1.22472529,2773.8,2772.6,1.53290351]
[1645208765148,0.65543132,2773.7,2772.6,1.53290351]
[1645208765647,0.02274489,2773.8,2772.6,3.13290351]
[1645208765848,0.02274489,2773.8,2772.7,1.53290351]
[1645208766249,0.02274489,2773.8,2772.7,2.53290351]
[1645208766453,0.02274489,2773.8,2772.8,1.53290351]
[1645208766650,0.02274489,2773.8,2773.0,0.74619589]
[1645208766651,0.71525139,2773.6,2773.0,0.74619589]
[1645208766849,0.71525139,2773.6,2773.1,1.53290351]
[1645208767050,0.71525139,2773.6,2773.0,1.04619589]
[1645208768049,0.71525139,2773.6,2773.1,1.5329177]
[1645208768249,0.71525139,2773.6,2773.0,1.04619589]
[1645208768908,0.71525139,2773.6,2773.0,0.74619589]
[1645208769104,0.01806436,2773.7,2773.0,0.74619589]
[1645208770503,0.01806436,2773.7,2773.0,1.04619589]
[1645208770704,0.01806436,2773.7,2773.1,1.53283105]
[1645208770904,0.01806436,2773.7,2773.1,2.53283105]
[1645208771106,0.01806436,2773.7,2773.2,1.53283105]
[1645208771305,0.01806436,2773.7,2773.6,0.78542591]
[1645208773846,0.00144522,2773.8,2773.6,0.78542591]
[1645208775650,0.00144522,2773.8,2773.2,0.19921487]
[1645208775849,0.00144522,2773.8,2773.2,0.01901487]
[1645208776707,0.75279322,2773.6,2773.2,0.01901487]
[1645208778106,3.68164522,2773.8,2773.2,0.01901487]
[1645208778107,0.18164522,2773.8,2773.2,0.01901487]
[1645208778311,0.17256443,2774.0,2773.3,0.00084227]
[1645208778507,0.9018135,2774.3,2773.3,0.00084227]
[1645208779207,0.6456261,2774.3,2773.6,0.82926099]
[1645208779405,0.6456261,2774.3,2773.7,0.01897124]
[1645208779606,0.6456261,2774.3,2773.7,0.01981339]
[1645208780449,0.6456261,2774.3,2773.7,0.01897124]
[1645208780651,0.6456261,2774.3,2773.9,0.00084209]
[1645208781250,0.9456261,2774.3,2773.9,0.00084209]
[1645208781651,0.9456261,2774.3,2773.7,0.01897124]
[1645208781851,0.9456261,2774.3,2774.0,0.00084205]
[1645208782051,0.901856,2774.2,2774.0,0.00084205]
[1645208782251,1.803706,2774.2,2774.0,0.00084205]
[1645208782857,1.803706,2774.2,2773.7,0.01897124]
[1645208783053,3.5,2774.1,2774.0,4.205e-05]
[1645208783253,0.00075795,2773.9,2773.7,0.01897124]
[1645208783454,3.5,2773.7,2772.9,0.1802]
[1645208783654,1.0822,2773.8,2772.9,0.1802]
[1645208783655,3.5,2773.6,2772.9,0.1802]
[1645208784315,0.6,2773.7,2772.9,0.1802]
[1645208784316,0.77779283,2773.1,2772.9,0.1802]
[1645208785619,0.77779283,2773.1,2772.9,0.18104028]
[1645208786018,0.6,2773.7,2772.9,0.18104028]
[1645208786219,0.3,2773.7,2772.9,0.18104028]
[1645208786418,0.4802,2773.8,2772.9,0.1802]
[1645208786620,0.3,2773.8,2772.5,1.16857675]
[1645208786818,0.00075795,2773.9,2773.2,0.00084019]
[1645208787018,0.80270999,2773.8,2773.2,0.77039477]
[1645208787219,0.00075795,2773.9,2773.2,0.77039477]
[1645208787650,0.00075795,2773.9,2773.2,0.76955458]
[1645208788151,0.00075795,2773.9,2773.4,0.00084012]
[1645208788349,0.83673102,2773.9,2773.4,0.00084012]
[1645208788948,0.83673102,2773.9,2773.3,0.3]
[1645208789154,0.00075795,2773.9,2773.5,0.00084009]
[1645208790051,0.00075795,2773.9,2773.3,0.3]
[1645208790250,0.00075795,2773.9,2773.6,0.00084007]
[1645208791253,0.00075795,2773.9,2773.3,0.3]
[1645208791502,0.00075795,2773.9,2773.6,0.00084006]
[1645208792297,0.1802,2773.8,2773.6,0.00084006]
[1645208792497,0.1802,2773.8,2772.8,0.1802]
[1645208792697,1.00075795,2773.9,2772.8,0.1802]
[1645208792698,0.18095795,2773.9,2772.8,0.1802]
[1645208792895,1.18095795,2773.9,2773.6,0.00084006]
[1645208793097,0.18095795,2773.9,2773.6,0.00084006]
[1645208793301,0.00075795,2773.9,2773.6,0.00084006]
[1645208793699,0.00075795,2773.9,2773.5,0.87499189]
[1645208793899,0.02037462,2773.8,2773.6,0.00084006]
[1645208794801,0.02037462,2773.8,2773.5,1.01927789]
[1645208795000,0.02037462,2773.8,2773.5,0.144286]
[1645208795248,0.02037462,2773.8,2773.6,0.00084007]
[1645208795548,0.1802,2773.7,2773.6,0.00084007]
[1645208795958,0.94917687,2773.7,2773.6,0.00084007]
[1645208796148,0.94917687,2773.7,2772.8,0.96719165]
[1645208796349,0.94917687,2773.7,2773.5,0.00084009]
[1645208796749,11.96208,2773.6,2773.5,0.00084009]
[1645208796951,12.66228,2773.6,2773.5,0.00084009]
[1645208797150,2.90228,2773.6,2773.5,0.00084009]
[1645208797350,2.0002,2773.6,2772.2,5.25955819]
[1645208797555,4.6802,2773.5,2772.2,2.8071]
[1645208797751,4.9802,2773.5,2772.7,0.85311158]
[1645208797959,1.4802,2773.5,2772.7,0.85311158]
[1645208798153,0.9021119,2773.4,2772.7,0.85311158]
[1645208798351,0.3,2773.3,2772.7,0.85311158]
[1645208798655,0.7784129,2773.2,2772.6,0.144326]
[1645208798916,0.7784129,2773.2,2772.2,2.8071]
[1645208799110,1.0784129,2773.2,2772.1,0.90213]
[1645208799710,1.0784129,2773.2,2772.2,1.53334151]
[1645208799917,1.202164,2773.2,2772.6,0.64263452]
[1645208800116,0.3,2773.2,2772.6,0.64263452]
[1645208800316,2.08229,2773.5,2772.6,0.64263452]
[1645208800317,0.4802,2773.5,2772.6,0.64263452]
[1645208800513,0.00075795,2773.9,2772.6,0.94263452]
[1645208800824,0.89415077,2773.8,2773.2,0.76333389]
[1645208801912,0.00075795,2773.9,2773.2,0.76333389]
[1645208802411,0.00075795,2773.9,2773.4,0.00084013]
[1645208802849,0.90271795,2773.9,2773.4,0.00084013]
[1645208803253,0.90271795,2773.9,2773.2,0.76333389]
[1645208803254,1.9842998,2773.8,2773.2,0.76333389]
[1645208803451,1.8040998,2773.8,2773.2,0.76333389]
[1645208803654,2.58487035,2773.9,2773.5,0.00084009]
[1645208804452,3.93015622,2773.9,2772.5,0.90196]
[1645208804652,0.90201,2773.7,2772.6,1.53312405]
[1645208804852,0.67934621,2773.4,2772.8,0.7882887]
[1645208805054,4.84528587,2773.8,2772.8,0.7882887]
[1645208805254,1.4802,2773.7,2772.8,0.7882887]
[1645208805754,0.4802,2773.7,2772.8,0.7882887]
[1645208805954,0.1802,2773.8,2773.4,0.64314947]
[1645208806157,0.00075795,2773.9,2773.4,0.64314947]
[1645208806406,1.34604382,2773.9,2773.4,0.64314947]
[1645208806599,1.34604382,2773.9,2773.1,0.00084021]
[1645208806799,1.34604382,2773.9,2772.7,1.90189]
[1645208806800,3.14994282,2773.9,2772.8,1.83309243]
[1645208806999,3.14994282,2773.9,2772.8,0.6]
[1645208807000,2.24800382,2773.9,2772.8,0.6]
[1645208807200,2.24800382,2773.9,2773.5,0.00084009]
[1645208807801,0.00064693,2773.5,2773.1,0.65902682]
[1645208811951,0.00064693,2773.5,2773.2,0.00083809]
[1645208812851,0.00064693,2773.5,2772.7,1.5331482]
[1645208813050,0.00064693,2773.5,2773.2,0.00083808]
[1645208814109,0.00064693,2773.5,2773.1,0.995959]
[1645208814305,0.00064693,2773.5,2773.3,0.01791817]
[1645208815605,0.00064693,2773.5,2773.3,0.01875623]
[1645208816206,0.90273663,2773.5,2773.3,0.01875623]
[1645208816406,0.90273663,2773.5,2773.3,0.01791817]
[1645208816806,0.90273663,2773.5,2773.3,0.01875623]
[1645208817307,1.80482663,2773.5,2773.3,0.01875623]
[1645208817753,1.80482663,2773.5,2773.3,0.01791817]
[1645208817953,1.75482663,2773.5,2773.3,0.01875623]
[1645208818150,0.00064693,2773.5,2773.3,0.01875623]
[1645208818951,0.00064693,2773.5,2773.3,0.01791817]
[1645208819155,0.00064693,2773.5,2773.3,0.01875623]
[1645208819553,0.01526971,2773.4,2773.3,0.00083806]
[1645208820152,0.01526971,2773.4,2773.1,0.851648]
[1645208820353,0.01526971,2773.4,2773.2,0.00083808]
[1645208821430,0.01526971,2773.4,2772.6,1.53305551]
[1645208821625,0.01526971,2773.4,2773.2,0.00083809]
[1645208822432,0.01526971,2773.4,2772.6,1.53301549]
[1645208822627,0.01526971,2773.4,2772.7,0.52]
[1645208822828,0.01526971,2773.4,2773.2,0.00083809]
[1645208823229,0.01526971,2773.4,2773.3,0.82951722]
[1645208823428,0.01526971,2773.4,2773.3,2.66253271]
[1645208823729,0.01526971,2773.4,2773.1,0.52]
[1645208823929,0.01526971,2773.4,2773.2,0.00083808]
[1645208824628,0.02035961,2773.4,2773.2,0.00083808]
[1645208824827,0.02035961,2773.4,2772.7,1.53306836]
[1645208825028,0.02035961,2773.4,2773.0,0.81798194]
[1645208825255,0.02035961,2773.4,2773.2,0.00083809]
[1645208826054,0.02035961,2773.4,2773.1,1.53301269]
[1645208826454,0.02035961,2773.4,2773.2,0.00083809]
[1645208827357,0.02035961,2773.4,2773.1,1.53301269]
[1645208827553,0.02035961,2773.4,2773.2,0.00083809]
[1645208827952,0.02035961,2773.4,2773.2,1.53385078]
[1645208828554,0.02035961,2773.4,2773.2,1.53301269]
[1645208828753,0.02035961,2773.4,2773.2,1.53385078]
[1645208829602,0.02035961,2773.4,2773.2,1.53301269]
[1645208829799,0.02035961,2773.4,2773.1,1.0]
[1645208830001,0.02035961,2773.4,2773.2,0.00083809]
[1645208830901,0.02035961,2773.4,2773.1,1.0]
[1645208831101,0.02035961,2773.4,2773.2,0.00083809]
[1645208832107,0.02035961,2773.4,2772.6,1.2398]
[1645208832303,0.02035961,2773.4,2773.2,0.00083809]
[1645208833353,0.02035961,2773.4,2772.6,1.53332707]
[1645208833555,0.02035961,2773.4,2773.2,0.00083809]
[1645208833859,0.02035961,2773.4,2773.3,0.79825848]
[1645208834053,0.02035961,2773.4,2773.2,0.00083809]
[1645208834253,0.00064693,2773.5,2773.2,0.00083809]
[1645208834453,0.00064693,2773.5,2772.5,0.1802]
[1645208834454,1.3459328,2773.5,2772.5,0.1802]
[1645208834660,1.34528587,2773.3,2772.5,0.1802]
[1645208834854,0.00064693,2773.5,2772.5,1.1802]
[1645208834855,1.34528587,2773.4,2772.5,1.1802]
[1645208835057,0.00064693,2773.5,2772.6,1.53331002]
[1645208835353,0.00064693,2773.5,2772.5,1.1802]
[1645208835354,1.3459328,2773.5,2772.5,1.1802]
[1645208835554,0.00064693,2773.5,2772.6,2.22953237]
[1645208835754,0.00064693,2773.5,2772.7,2.05326102]
[1645208835957,0.00064693,2773.5,2772.9,0.00083817]
[1645208836801,0.00064693,2773.5,2772.7,1.53324986]
[1645208837001,0.00064693,2773.5,2773.2,0.74518753]
[1645208838203,1.34528587,2773.4,2772.5,1.1802]
[1645208838401,1.34528587,2773.4,2773.2,0.00083808]
[1645208839301,0.00064693,2773.5,2773.1,0.83278429]
[1645208839506,0.00064693,2773.5,2773.2,0.00083809]
[1645208840353,1.3459328,2773.5,2773.2,0.00083809]
[1645208840550,1.3459328,2773.5,2772.7,0.0170169]
[1645208840751,1.3459328,2773.5,2773.2,0.00083808]
[1645208840951,0.00064693,2773.5,2773.2,0.00083808]
[1645208841151,1.3459328,2773.5,2773.2,0.00083808]
[1645208841651,1.3459328,2773.5,2772.9,0.62793767]
[1645208841851,1.3459328,2773.5,2773.2,0.00083808]
[1645208842855,1.3459328,2773.5,2772.9,0.62793767]
[1645208843054,1.3459328,2773.5,2773.2,0.00083808]
[1645208843552,0.00064693,2773.5,2773.2,0.00083808]
[1645208844205,0.00064693,2773.5,2773.1,0.52]
[1645208844403,0.00064693,2773.5,2773.2,0.00083808]
[1645208844603,0.00064693,2773.5,2773.4,0.01695583]
[1645208844806,0.00064693,2773.5,2773.4,1.00620915]
[1645208845002,0.00064693,2773.5,2773.4,1.30620915]
[1645208847102,0.00064693,2773.5,2773.4,0.70620915]
[1645208848554,0.00064693,2773.5,2773.4,1.00620915]
[1645208848752,0.00064693,2773.5,2773.4,0.70620915]
[1645208849552,0.00064693,2773.5,2773.4,1.00620915]
[1645208849953,0.00064693,2773.5,2773.4,0.98925332]
[1645208850158,0.01556198,2773.5,2773.4,0.98925332]
[1645208850956,0.01556198,2773.5,2773.4,1.28925332]
[1645208854207,6.198e-05,2773.5,2773.4,1.28925332]
[1645208854411,0.00075795,2773.9,2773.4,3.34213379]
[1645208854610,0.00075795,2773.9,2773.5,1.53288047]
[1645208854806,0.00075795,2773.9,2773.6,0.52]
[1645208855255,0.00075795,2773.9,2773.7,1.53271222]
[1645208855460,0.00075795,2773.9,2773.7,0.52]
[1645208855655,0.00075795,2773.9,2773.7,0.82]
[1645208856056,0.00075795,2773.9,2773.7,0.52]
[1645208857758,0.00075795,2773.9,2773.6,0.6]
[1645208857960,0.00075795,2773.9,2773.4,1.28925332]
[1645208858158,0.00075795,2773.9,2773.4,0.98925332]
[1645208858758,0.00075795,2773.9,2773.4,1.16945332]
[1645208859205,0.00075795,2773.9,2773.4,1.11945332]
[1645208859402,0.00075795,2773.9,2773.8,0.0095078]
[1645208861104,0.00075795,2773.9,2773.4,0.68925332]
[1645208863163,0.00075795,2773.9,2773.4,1.68925332]
[1645208864160,0.00075795,2773.9,2773.8,0.01883856]
[1645208869502,0.00075795,2773.9,2773.4,0.6907251]
[1645208872256,0.00075795,2773.9,2773.4,0.9907251]
[1645208872656,0.00075795,2773.9,2773.4,1.2907251]
[1645208874606,0.00075795,2773.9,2773.6,0.01756371]
[1645208879253,0.00075795,2773.9,2773.5,0.144273]
[1645208879254,0.01517935,2773.8,2773.5,0.144273]
[1645208879652,0.64310932,2773.9,2773.5,0.144273]
[1645208879653,0.55828867,2773.9,2773.5,0.144273]
[1645208880356,2.20357454,2773.9,2773.5,0.144273]
[1645208880555,0.1802,2773.8,2773.5,0.144273]
[1645208881158,0.55828867,2773.9,2773.5,0.144273]
[1645208881404,0.1802,2774.2,2773.5,0.144273]
[1645208881610,1.2196,2774.5,2773.5,0.144273]
[1645208881907,0.00604692,2774.6,2773.6,0.52]
[1645208882105,1.35133279,2774.6,2773.8,0.90156]
[1645208882309,1.34528587,2774.6,2773.8,0.90156]
[1645208882506,1.34528587,2774.6,2773.6,0.52]
[1645208882507,1.34528587,2774.4,2773.6,0.3]
[1645208882907,1.34528587,2774.4,2773.6,0.6]
[1645208883108,1.34528587,2774.5,2773.5,0.144273]
[1645208883409,1.34528587,2774.4,2774.0,0.79113017]
[1645208884312,0.1802,2774.6,2773.5,0.144273]
[1645208884313,1.34528587,2774.5,2773.5,0.144273]
[1645208884510,1.35133279,2774.5,2773.5,0.144273]
[1645208884909,1.34528587,2774.3,2773.5,0.144273]
[1645208885365,1.34528587,2774.4,2773.8,0.83886145]
[1645208885965,1.53153279,2774.6,2773.8,0.83886145]
[1645208886165,0.00604692,2774.6,2773.8,1.13886145]
[1645208886368,0.00604692,2774.7,2773.9,2.61432938]
[1645208886564,1.34528587,2774.9,2773.9,1.60171]
[1645208886767,0.00604692,2774.8,2774.1,0.3]
[1645208886966,0.00604692,2774.8,2774.2,0.90134]
[1645208887166,1.80465904,2775.2,2774.2,0.90134]
[1645208887167,1.34528587,2775.0,2774.2,0.90134]
[1645208887364,0.00604692,2774.9,2774.6,0.70144578]
[1645208887567,1.34528587,2775.0,2774.6,0.70144578]
[1645208888369,0.00604692,2775.2,2774.6,2.20279578]
[1645208888568,0.00604692,2775.3,2774.7,1.60134]
[1645208888767,1.35133279,2775.5,2774.7,1.60134]
[1645208889210,1.35133279,2775.5,2775.4,0.88907204]
[1645208889211,0.00604692,2775.5,2775.4,0.88907204]
[1645208889414,2.54733279,2775.8,2775.4,0.88907204]
[1645208889710,2.54733279,2775.8,2775.0,0.82]
[1645208889711,1.34528587,2775.6,2775.0,0.82]
[1645208889911,1.34528587,2775.6,2775.2,0.3]
[1645208890112,1.34528587,2775.7,2775.2,0.3]
[1645208890313,0.00604692,2775.8,2775.0,0.6]
[1645208890314,1.34528587,2775.6,2775.0,0.6]
[1645208890512,1.34528587,2775.5,2775.0,1.06506882]
[1645208890714,1.80465904,2775.8,2775.0,0.76506882]
[1645208890715,1.98191519,2775.6,2775.0,0.76506882]
[1645208890916,1.34528587,2775.6,2775.0,1.66630882]
[1645208891112,1.34528587,2775.6,2775.0,2.26630882]
[1645208891520,1.34528587,2775.6,2775.0,1.96630882]
[1645208891712,1.34528587,2775.6,2775.0,2.26630882]
[1645208891913,1.34528587,2775.6,2775.0,1.06506882]
[1645208892115,1.34528587,2775.5,2775.0,1.06506882]
[1645208892316,1.34528587,2775.5,2775.0,1.36506882]
[1645208892769,1.34528587,2775.6,2775.0,0.76506882]
[1645208892969,1.34528587,2775.6,2775.0,1.36506882]
[1645208893768,1.34528587,2775.7,2775.0,1.36506882]
[1645208894371,1.35133279,2775.8,2775.6,0.02028413]
[1645208894575,1.34528587,2775.9,2775.6,0.02028413]
[1645208894772,1.34528587,2776.0,2775.6,0.02028413]
[1645208895571,1.34528587,2776.0,2775.6,0.69472921]
[1645208896907,1.34528587,2776.1,2775.6,0.69472921]
[1645208897105,1.34528587,2776.1,2775.3,0.3]
[1645208897106,1.34528587,2776.1,2775.4,0.6760605]
[1645208897306,1.35133279,2776.1,2775.4,0.44218203]
[1645208897506,1.34528587,2776.0,2775.4,0.44218203]
[1645208898112,1.35133279,2776.1,2775.4,1.64318203]
[1645208898308,1.34528587,2776.1,2775.5,0.3]
[1645208898511,0.00604692,2776.2,2775.5,0.3]
[1645208898515,1.35133279,2776.2,2775.6,0.90091]
[1645208898710,0.00604692,2776.3,2775.7,0.3]
[1645208898909,1.80465904,2776.6,2776.0,0.8712774]
[1645208898910,1.35133279,2776.6,2776.0,0.8712774]
[1645208899112,0.00604692,2776.4,2776.0,0.8712774]
[1645208899312,1.34528587,2776.6,2776.0,0.8712774]
[1645208899510,1.34528587,2776.5,2776.0,0.8712774]
[1645208899711,1.34528587,2776.5,2776.0,1.4712774]
[1645208899911,3.14994491,2776.7,2776.0,1.4712774]
[1645208900160,1.34528587,2776.7,2776.0,1.4712774]
[1645208900561,1.34528587,2776.7,2776.5,0.81889564]
[1645208900860,1.80465904,2777.0,2776.5,0.71218474]
[1645208900861,1.34528587,2776.9,2776.5,0.71218474]
[1645208901060,1.35133279,2777.1,2776.5,1.83218474]
[1645208901259,1.80465904,2777.4,2776.5,1.83218474]
[1645208901260,0.00604692,2777.2,2776.5,1.83218474]
[1645208901466,0.00604692,2777.3,2776.6,0.1799]
[1645208901659,1.34528587,2777.5,2776.7,1.42053]
[1645208901865,0.00604692,2777.4,2776.7,0.82]
[1645208902060,2.19272608,2777.4,2776.7,0.82]
[1645208902259,2.18667916,2777.4,2776.7,0.82]
[1645208902461,2.18667916,2777.4,2776.2,0.1799]
[1645208902462,1.34528587,2777.3,2776.2,0.1799]
[1645208902658,1.34528587,2777.3,2776.1,3.1337]
[1645208902659,1.34528587,2777.1,2776.1,3.1337]
[1645208902859,1.34528587,2777.1,2775.8,2.00134223]
[1645208903061,0.00604692,2777.0,2775.8,2.00134223]
[1645208903658,0.82086239,2776.7,2775.9,2.07549295]
[1645208903911,0.82690931,2776.7,2775.9,3.37549295]
[1645208904112,0.82690931,2776.7,2775.9,2.51619295]
[1645208904312,0.82690931,2776.7,2775.9,0.69422157]
[1645208904515,0.82690931,2776.7,2776.2,0.01903156]
[1645208904713,0.9010548,2776.6,2776.2,0.01903156]
[1645208904912,4.4010548,2776.6,2776.2,0.01903156]
[1645208905313,2.7034048,2776.6,2776.2,0.01903156]
[1645208905712,6.2034048,2776.6,2776.2,0.01903156]
[1645208906314,0.90113,2776.5,2776.2,0.01903156]
[1645208907114,0.9010548,2776.6,2776.2,0.01903156]
[1645208907756,0.90109,2776.5,2776.2,0.01903156]
[1645208909360,0.9010548,2776.6,2775.5,0.01147363]
[1645208909361,3.5,2776.4,2775.5,0.01147363]
[1645208909563,0.90124,2776.2,2775.5,0.01147363]
[1645208909768,3.5,2776.1,2775.5,0.01147363]
[1645208909962,0.79190392,2775.6,2775.5,0.01147363]
[1645208911408,0.18614692,2776.0,2775.5,0.01147363]
[1645208911609,0.9013288,2775.8,2775.5,0.01147363]
[1645208912209,4.70135,2775.7,2775.5,0.01147363]
[1645208912415,4.6801,2775.6,2775.5,0.01147363]
[1645208912612,4.6801,2775.6,2774.0,1.80284]
[1645208912613,5.0,2775.5,2774.0,1.80284]
[1645208912911,0.9015375,2775.2,2774.0,1.80284]
[1645208913212,0.79117112,2775.1,2774.3,0.86382709]
[1645208913411,0.90158,2775.0,2773.9,0.1802]
[1645208914010,0.90158,2775.0,2773.9,1.1802]
[1645208914011,4.40158,2775.0,2773.9,1.1802]
[1645208914211,4.40158,2775.0,2773.9,1.0]
[1645208914212,4.4015704,2775.0,2773.9,1.0]
[1645208914411,0.79721804,2775.1,2774.3,0.74853763]
[1645208914613,0.79721804,2775.1,2773.9,1.0]
[1645208914811,1.09721804,2775.1,2773.9,1.0]
[1645208915263,1.09721804,2775.1,2773.8,3.4297]
[1645208915662,1.09721804,2775.1,2773.8,3.7297]
[1645208915865,1.09721804,2775.1,2774.2,0.7067472]
[1645208916062,2.90031414,2775.1,2774.2,0.7067472]
[1645208917266,1.09721804,2775.1,2774.2,0.7067472]
[1645208917465,0.79721804,2775.1,2774.2,0.7067472]
[1645208917669,0.00604692,2775.1,2774.2,1.0067472]
[1645208917865,0.00604692,2775.2,2774.2,1.0067472]
[1645208919109,0.00604692,2775.2,2774.2,0.7067472]
[1645208919110,0.84035833,2775.2,2774.2,0.7067472]
[1645208919607,0.0365899,2775.1,2774.2,0.7067472]
[1645208919811,0.01907181,2775.0,2774.2,0.7067472]
[1645208922667,0.92062181,2775.0,2774.2,0.7067472]
[1645208923467,0.01907181,2775.0,2774.2,0.7067472]
[1645208923868,0.01907181,2775.0,2774.2,1.2267472]
[1645208924168,0.01907181,2775.0,2774.2,0.7067472]
[1645208924568,0.84035833,2775.2,2774.4,0.01773513]
[1645208924768,0.90163,2775.1,2774.4,0.01773513]
[1645208924970,1.8031527,2775.0,2774.4,0.01773513]
[1645208925372,0.9015727,2775.0,2774.4,0.01773513]
[1645208925770,0.77787541,2774.7,2774.4,0.01773513]
[1645208925971,1.67952301,2774.7,2774.4,0.01773513]
[1645208926810,1.67952301,2774.7,2774.4,3.513e-05]
[1645208926811,1.2016476,2774.7,2774.4,3.513e-05]
[1645208927012,0.1802,2774.6,2774.4,3.513e-05]
[1645208927309,0.1802,2774.6,2773.1,0.1802]
[1645208927310,0.901886,2774.2,2773.1,0.1802]
[1645208927711,0.90188,2774.0,2773.1,0.1802]
[1645208927915,0.75547008,2774.1,2773.3,0.7483397]
[1645208929210,0.75547008,2774.1,2773.0,7.49]
[1645208929413,4.4018748,2774.0,2772.8,1.80359]
[1645208929611,6.3860048,2774.0,2772.7,9.3365]
[1645208929811,0.3,2773.9,2772.7,7.3616]
[1645208930265,0.79229975,2773.5,2772.7,7.3616]
[1645208930471,3.5,2773.4,2772.4,0.1802]
[1645208930669,3.5,2773.4,2772.3,7.49]
[1645208930865,0.79229975,2773.5,2772.3,7.49]
[1645208931467,0.9020665,2773.4,2772.6,0.75921367]
[1645208931667,1.8041365,2773.4,2772.6,0.75921367]
[1645208932470,0.79229975,2773.5,2772.3,7.49]
[1645208932670,0.9021345,2773.2,2772.3,7.49]
[1645208933472,0.9021345,2773.2,2772.3,8.31887936]
[1645208933672,1.8042745,2773.2,2772.3,8.31887936]
[1645208933912,0.75398062,2773.0,2772.3,8.31887936]
[1645208934315,0.75398062,2773.0,2772.9,0.0170646]
[1645208937960,0.90207,2773.4,2772.9,0.0170646]
[1645208938163,0.1802,2773.6,2772.9,0.0170646]
[1645208938364,0.1802,2773.7,2772.9,0.0170646]
[1645208939161,0.04992048,2773.0,2772.3,7.49]
[1645208939362,0.04992048,2773.0,2772.7,0.65404588]
[1645208942517,1.2235,2773.8,2772.8,6.0]
[1645208942715,0.00076487,2774.3,2772.9,0.1802]
[1645208942913,0.00076487,2774.3,2773.0,0.52]
[1645208943113,0.00076487,2774.3,2773.1,0.9017]
[1645208943313,0.00076487,2774.3,2773.2,0.52]
[1645208943617,0.00076487,2774.3,2773.3,0.79248045]
[1645208943618,1.59521394,2774.1,2773.3,0.79248045]
[1645208944014,0.69336394,2774.1,2773.3,0.79248045]
[1645208944813,0.90184,2774.1,2773.3,0.79248045]
[1645208945272,1.803704,2774.1,2773.3,0.79248045]
[1645208945476,3.5,2774.0,2773.2,0.52]
[1645208945678,0.90204,2773.8,2772.4,1.3845]
[1645208945876,3.6802,2773.7,2772.4,1.2043]
[1645208946073,14.7402,2773.7,2772.4,1.2043]
[1645208946276,0.9021059,2773.4,2772.4,1.2043]
[1645208946472,14.56,2773.7,2772.4,1.2043]
[1645208946473,0.71389177,2773.1,2772.4,0.83566495]
[1645208946872,1.61610177,2773.1,2772.4,0.83566495]
[1645208947072,1.61610177,2773.1,2772.4,0.3]
[1645208947278,1.61610177,2773.1,2772.1,0.324506]
[1645208947478,1.61610177,2773.1,2772.0,2.9927]
[1645208947479,3.5,2773.0,2772.0,2.9927]
[1645208947677,3.5,2773.0,2771.6,0.1802]
[1645208947678,14.56,2773.0,2771.6,0.1802]
[1645208947873,0.9024,2772.8,2771.5,0.1802]
[1645208948076,0.65265873,2772.3,2771.6,0.72080214]
[1645208948276,0.65265873,2772.3,2771.3,3.1122]
[1645208948475,0.9025456,2772.0,2771.1,0.1802]
[1645208948677,0.1804,2772.1,2771.2,7.2162]
[1645208948909,0.1804,2772.1,2771.2,7.1662]
[1645208949110,0.90269,2771.8,2771.2,7.1662]
[1645208949909,0.8170498,2771.5,2771.2,7.1662]
[1645208950309,2.6225998,2771.5,2771.2,7.1662]
[1645208950709,0.8170498,2771.5,2771.2,7.1662]
[1645208952509,1.719747,2771.5,2771.2,7.1662]
[1645208952759,0.90273,2771.4,2771.2,7.1662]
[1645208953960,0.1804,2772.0,2771.2,7.1662]
[1645208954163,1.5495,2772.4,2771.2,7.1662]
[1645208954360,3.1223,2772.7,2771.3,1.0]
[1645208954564,3.1223,2772.7,2771.4,0.01858697]